fUSD/lending_fUSD_20260218
["ID","MTS","AMOUNT","RATE_DAILY","PERIOD"]
[405895642,1771405835309,500.0,6.513e-05,2]
[405895643,1771405835347,500.0,6.513e-05,2]
[405895644,1771405835393,500.0,6.513e-05,2]
[405895645,1771405835431,500.0,6.513e-05,2]
[405895646,1771405835477,500.0,6.513e-05,2]
[405895647,1771405835518,500.0,6.513e-05,2]
[405895648,1771405835594,500.0,6.513e-05,2]
[405895649,1771405835628,500.0,6.513e-05,2]
[405895650,1771405835674,500.0,6.513e-05,2]
[405895651,1771405835729,500.0,6.513e-05,2]
[405895652,1771405835771,500.0,6.513e-05,2]
[405895653,1771405835810,500.0,6.513e-05,2]
[405895654,1771405835851,500.0,6.513e-05,2]
[405895655,1771405835888,500.0,6.513e-05,2]
[405895656,1771405835935,500.0,6.513e-05,2]
[405895657,1771405835989,500.0,6.513e-05,2]
[405895658,1771405836024,500.0,6.513e-05,2]
[405895667,1771405838545,-1167.24714966,6.514e-05,2]
[405895668,1771405838558,-361.18778429,6.514e-05,2]
[405895669,1771405838570,-2304.32791639,6.514e-05,2]
[405895670,1771405838580,-324.3688369,6.514e-05,2]
[405895671,1771405838589,-207.0,6.514e-05,2]
[405895672,1771405838599,-8953.80570727,6.514e-05,2]
[405895673,1771405838608,-185.59578519,6.514e-05,2]
[405895674,1771405838617,-7476.01114351,6.514e-05,2]
[405895675,1771405838627,-200.0,6.6e-05,2]
[405895676,1771405838637,-937.737,6.614e-05,2]
[405895677,1771405838646,-162.986,6.614e-05,2]
[405895678,1771405838656,-166.66,6.685e-05,2]
[405895679,1771405838665,-500.0,6.7e-05,2]
[405895680,1771405838674,-800.0,6.8e-05,2]
[405895681,1771405838683,-250.0,6.84e-05,2]
[405895682,1771405838693,-1100.0,6.9e-05,2]
[405895683,1771405838702,-166.66,6.906e-05,2]
[405895684,1771405838712,-177.0,6.929e-05,2]
[405895685,1771405838722,-150067.74,6.929e-05,2]
[405895686,1771405838731,-819.0,6.951e-05,2]
[405895687,1771405838740,-1400.0,7e-05,2]
[405895688,1771405838750,-380.0,7.009e-05,2]
[405895689,1771405838759,-265.0,7.023e-05,2]
[405895690,1771405838769,-166.66,7.127e-05,2]
[405895691,1771405838779,-1612.57,7.156e-05,2]
[405895692,1771405838789,-9999.99,7.156e-05,2]
[405895693,1771405838798,-255.0,7.164e-05,2]
[405895694,1771405838808,-1680.0,7.164e-05,2]
[405895695,1771405838817,-250.0,7.165e-05,2]
[405895696,1771405838826,-575.0,7.243e-05,2]
[405895697,1771405838836,-449.0,7.243e-05,2]
[405895698,1771405838845,-220.0,7.258e-05,2]
[405895699,1771405838855,-1739.0,7.261e-05,2]
[405895700,1771405838864,-150.99,7.261e-05,2]
[405895701,1771405838874,-250.0,7.274e-05,2]
[405895702,1771405838886,-668.50083504,7.276e-05,2]
[405895703,1771405838896,-479.0,7.28e-05,2]
[405895704,1771405838906,-500.0,7.293e-05,2]
[405895705,1771405838915,-252.0,7.298e-05,2]
[405895706,1771405838925,-5361.1121104,7.303e-05,2]
[405895707,1771405838935,-261.0,7.328e-05,3]
[405895708,1771405838944,-186.0,7.328e-05,3]
[405895709,1771405838954,-166.66,7.347e-05,2]
[405895710,1771405838963,-326.0,7.398e-05,2]
[405895711,1771405838974,-3144.5305784,7.407e-05,2]
[405895712,1771405838984,-50705.633927,7.407e-05,2]
[405895713,1771405838994,-161.0,7.424e-05,2]
[405895714,1771405839003,-166.66,7.568e-05,2]
[405895715,1771405839012,-166.66,7.789e-05,2]
[405895716,1771405839022,-433.0,7.881e-05,2]
[405895717,1771405839031,-2351.0,7.881e-05,2]
[405895718,1771405839040,-1297.59034333,7.899e-05,2]
[405895719,1771405839050,-200.0,7.9e-05,2]
[405895720,1771405839059,-1035177.0,8e-05,2]
[405895721,1771405839068,-200.0,8e-05,2]
[405895722,1771405839078,-445.0,8.082e-05,2]
[405895723,1771405839088,-172.496189,8.123e-05,2]
[405895724,1771405839097,-151.0,8.123e-05,2]
[405895725,1771405839107,-229.009766,8.123e-05,2]
[405895726,1771405839117,-229.009766,8.123e-05,2]
[405895727,1771405839127,-229.009766,8.123e-05,2]
[405895728,1771405839137,-229.009766,8.123e-05,2]
[405895729,1771405839147,-750.031541,8.123e-05,2]
[405895730,1771405839157,-750.031541,8.123e-05,2]
[405895731,1771405839166,-750.031541,8.123e-05,2]
[405895732,1771405839175,-750.031541,8.123e-05,2]
[405895733,1771405839184,-1000.0,8.123e-05,2]
[405895734,1771405839195,-1000.0,8.123e-05,2]
[405895735,1771405839205,-1000.0,8.123e-05,2]
[405895736,1771405839213,-609.41578164,8.123e-05,2]
[405895737,1771405839223,-400495.55773,8.123e-05,2]
[405895738,1771405839235,-346.22909034,8.123e-05,2]
[405895739,1771405839248,-449842.32567461,8.123e-05,2]
[405895740,1771405839759,-51.09129659,8.123e-05,2]
[405895744,1771405841305,500.0,6.513e-05,2]
[405895748,1771405845765,-427.78999987,8.123e-05,2]
[405895753,1771405845799,-13632.80000002,8.123e-05,2]
[405895760,1771405847429,783.09823119,6.514e-05,2]
[405895761,1771405867898,236.0,6.514e-05,3]
[405895762,1771405868637,9764.01,6.514e-05,2]
[405895763,1771405868666,10000.01,6.514e-05,2]
[405895764,1771405868706,10000.01,6.514e-05,2]
[405895765,1771405868731,10000.01,6.514e-05,2]
[405895766,1771405868754,10000.01,6.514e-05,2]
[405895767,1771405868778,10000.01,6.514e-05,2]
[405895768,1771405868801,10000.01,6.514e-05,2]
[405895769,1771405868824,10000.01,6.514e-05,2]
[405895770,1771405868847,10000.01,6.514e-05,2]
[405895771,1771405868869,10000.01,6.514e-05,2]
[405895772,1771405868892,5000.01,6.514e-05,2]
[405895773,1771405868915,5000.01,6.514e-05,2]
[405895774,1771405868938,5000.01,6.514e-05,2]
[405895775,1771405868960,5000.01,6.514e-05,2]
[405895776,1771405868982,5000.01,6.514e-05,2]
[405895777,1771405869005,5000.01,6.514e-05,2]
[405895778,1771405869028,5000.01,6.514e-05,2]
[405895779,1771405869050,5000.01,6.514e-05,2]
[405895780,1771405869073,5000.01,6.514e-05,2]
[405895781,1771405869095,5000.01,6.514e-05,2]
[405895782,1771405872490,493.08606488,6.513e-05,2]
[405895783,1771405895499,750.19,6.384e-05,2]
[405895784,1771405895792,162.986,6.384e-05,2]
[405895785,1771405921304,300.0,6.513e-05,2]
[405895786,1771405921716,150.0,6.513e-05,2]
[405895787,1771405925700,237.0,6.384e-05,3]
[405895788,1771405942149,166.44,5.753e-05,2]
[405895789,1771405953138,500.0,6.513e-05,2]
[405895790,1771405953223,500.0,6.513e-05,2]
[405895791,1771405953297,437.30961092,6.513e-05,2]
[405895792,1771405967201,244.29758201,6.513e-05,2]
[405895793,1771405981252,300.0,6.513e-05,2]
[405895794,1771405986323,225.0,6.513e-05,3]
[405895795,1771406009319,423.0,6.513e-05,2]
[405895796,1771406041397,110.70074219,6.513e-05,2]
[405895797,1771406041420,189.29925781,6.513e-05,2]
[405895798,1771406052198,214.0,6.513e-05,3]
[405895799,1771406070211,151.0,6.511e-05,2]
[405895800,1771406101298,300.0,6.513e-05,2]
[405895801,1771406101339,1200.0,6.513e-05,2]
[405895802,1771406101775,150.0,6.513e-05,2]
[405895803,1771406106076,345.16024542,6.513e-05,2]
[405895804,1771406109138,203.0,6.511e-05,3]
[405895805,1771406109200,177.0,6.511e-05,3]
[405895806,1771406127470,1297.59034333,6.513e-05,2]
[405895807,1771406161396,300.0,6.513e-05,2]
[405895808,1771406168982,193.0,6.511e-05,3]
[405895810,1771406229710,184.0,6.511e-05,3]
[405895811,1771406288937,174.0,6.511e-05,3]
[405895812,1771406348054,166.0,6.511e-05,3]
[405895813,1771406348556,521.01615025,8e-05,10]
[405895814,1771406410625,168.0,6.511e-05,3]
[405895815,1771406410706,157.0,6.511e-05,3]
[405895816,1771406471877,150.0,6.511e-05,3]
[405895817,1771406527663,150.0,6.511e-05,3]
[405895818,1771406536045,255.07808467,0.00018,30]
[405895819,1771406585892,150.0,6.511e-05,3]
[405895820,1771406646339,150.0,6.511e-05,3]
[405895821,1771406709013,150.0,6.511e-05,3]
[405895822,1771406711387,160.0,6.511e-05,3]
[405895823,1771406754126,2674.91,6.56e-05,2]
[405895824,1771406786778,1657.08,5.92e-05,2]
[405895825,1771406786973,1657.08,5.975e-05,2]
[405895826,1771406787179,1657.08,6.03e-05,2]
[405895827,1771406787360,1118.86,6.085e-05,2]
[405895828,1771406787382,538.22,6.085e-05,2]
[405895829,1771406787546,1657.08,6.14e-05,2]
[405895830,1771406787748,1657.08,6.195e-05,2]
[405895831,1771406787956,1657.08,6.25e-05,2]
[405895832,1771406788149,1657.08,6.305e-05,2]
[405895833,1771406788346,1657.08,6.36e-05,2]
[405895834,1771406788536,1176.39,6.415e-05,2]
[405895835,1771406788558,480.69,6.415e-05,2]
[405895836,1771406788723,1657.08,6.47e-05,2]
[405895837,1771406788912,1657.08,6.525e-05,2]
[405895838,1771406824450,150.0,0.00011233,120]
[405895839,1771406828945,150.0,6.511e-05,3]
[405895840,1771406885786,150.0,6.511e-05,3]
[405895842,1771406948151,150.0,6.511e-05,3]
[405895843,1771407005270,152.0,6.511e-05,3]
[405895844,1771407007085,150.0,6.511e-05,3]
[405895851,1771407031646,-207.0,6.58e-05,2]
[405895852,1771407031655,-1000.84090024,6.58e-05,2]
[405895853,1771407031666,-656.23909976,6.58e-05,2]
[405895854,1771407031675,-306.18737849,6.635e-05,2]
[405895855,1771407031752,-508.0,6.635e-05,2]
[405895856,1771407031813,-842.89262151,6.635e-05,2]
[405895857,1771407031822,-724.96799051,6.69e-05,2]
[405895858,1771407031833,-932.11200949,6.69e-05,2]
[405895859,1771407031842,-280.9144389,6.7e-05,2]
[405895860,1771407031853,-19.0855611,6.7e-05,2]
[405895861,1771407031862,-385.48799227,6.745e-05,2]
[405895868,1771407037692,-1271.59200773,6.745e-05,2]
[405895869,1771407037710,-250.0,6.76e-05,2]
[405895870,1771407037720,-1200.0,6.798e-05,2]
[405895871,1771407037730,-300.0,6.799e-05,2]
[405895872,1771407037739,-700.0,6.8e-05,2]
[405895873,1771407037748,-1657.08,6.8e-05,2]
[405895874,1771407037758,-500.0,6.821e-05,2]
[405895875,1771407037767,-200.0,6.825e-05,2]
[405895876,1771407037776,-1657.08,6.855e-05,2]
[405895877,1771407037786,-537.0,6.87e-05,2]
[405895878,1771407037796,-1100.0,6.9e-05,2]
[405895879,1771407037805,-461.0,6.9e-05,2]
[405895880,1771407037815,-1657.08,6.91e-05,2]
[405895881,1771407037824,-403.0,6.914e-05,2]
[405895882,1771407037833,-1893.0,6.925e-05,2]
[405895883,1771407037842,-514.0,6.927e-05,2]
[405895884,1771407037851,-171.00830741,6.934e-05,2]
[405895885,1771407037861,-241.61217179,6.934e-05,2]
[405895886,1771407037870,-150.0,6.934e-05,2]
[405895887,1771407037879,-1669569.80023588,6.935e-05,2]
[405895888,1771407037890,-671.07308538,6.935e-05,2]
[405895889,1771407037901,-5293.26003817,6.935e-05,2]
[405895890,1771407037913,-896.40182499,6.935e-05,2]
[405895891,1771407037923,-7243.67967299,6.935e-05,2]
[405895892,1771407037968,-675.01709256,6.935e-05,2]
[405895893,1771407037980,-1401.9124575,6.935e-05,2]
[405895910,1771407046066,-637.19189432,6.935e-05,2]
[405895911,1771407046087,-1037.3,6.935e-05,2]
[405895912,1771407046100,-712.84,6.935e-05,2]
[405895913,1771407655721,1500.0,6.274e-05,2]
[405895914,1771407785753,-800.0,6.575e-05,2]
[405895915,1771407785786,-349.31535161,6.575e-05,2]
[405895916,1771407807868,-50.68464839,6.575e-05,2]
[405895917,1771407807912,-207.0,6.575e-05,2]
[405895918,1771407807949,-150.0,6.575e-05,2]
[405895919,1771407807983,-300.0,6.575e-05,2]
[405895920,1771407808020,-84.63070322,6.575e-05,2]
[405895921,1771407808107,-415.36929678,6.575e-05,2]
[405895922,1771407959494,378.0,6.493e-05,2]
[405895924,1771408084011,-800.0,6.575e-05,2]
[405895925,1771408086198,-400.0,6.575e-05,2]
[405895926,1771408086223,-300.0,6.575e-05,2]
[405895927,1771408086249,-100.0,6.575e-05,2]
[405895928,1771408088431,-50.0,6.575e-05,2]
[405895929,1771408088461,-500.0,6.575e-05,2]
[405895930,1771408088489,-250.0,6.575e-05,2]
[405895931,1771408197178,200.0,6.51e-05,2]
[405895932,1771408226644,581.53,0.00018,30]
[405895933,1771408231933,-1093.95533249,6.573e-05,2]
[405895934,1771408231944,-313.05192485,6.575e-05,2]
[405895935,1771408231956,-886.94807515,6.575e-05,2]
[405895936,1771408231966,-272.9293957,6.575e-05,2]
[405895937,1771408231976,-11541.95697799,6.576e-05,2]
[405895938,1771408231987,-1286.0085527,6.576e-05,2]
[405895939,1771408231998,-321.55982235,6.576e-05,2]
[405895940,1771408232013,-347.43508066,6.576e-05,2]
[405895941,1771408232024,-711.05,6.576e-05,2]
[405895942,1771408232035,-1295.21988168,6.576e-05,2]
[405895943,1771408232046,-1427.00894998,6.576e-05,2]
[405895944,1771408232057,-6779.46985046,6.576e-05,2]
[405895947,1771408232094,-2256.41771873,6.576e-05,2]
[405895949,1771408232105,-21239.20165074,6.576e-05,2]
[405895951,1771408232116,-1024.725,6.576e-05,2]
[405895955,1771408232145,-492.21212702,6.576e-05,2]
[405895957,1771408232156,-687.16138692,6.576e-05,2]
[405895958,1771408232167,-889.62347965,6.576e-05,2]
[405895959,1771408232197,-736.07642552,6.576e-05,2]
[405895960,1771408237852,-115246.4230956,6.576e-05,2]
[405895961,1771408237861,-500.0,6.928e-05,2]
[405895962,1771408237871,-167060.733637,6.933e-05,2]
[405895963,1771408237880,-1000.0,6.935e-05,2]
[405895964,1771408237889,-1000.0,6.935e-05,2]
[405895965,1771408237899,-1000.0,6.935e-05,2]
[405895966,1771408237908,-609.41578164,6.935e-05,2]
[405895967,1771408237917,-152.0,6.935e-05,2]
[405895968,1771408237926,-152.0,6.935e-05,3]
[405895969,1771408237935,-150.0,6.935e-05,3]
[405895970,1771408237944,-1657.08,6.965e-05,2]
[405895971,1771408237954,-150.99,6.965e-05,2]
[405895972,1771408237963,-9999.99,7e-05,2]
[405895973,1771408237972,-1612.57,7e-05,2]
[405895974,1771408237981,-371.0,7.016e-05,2]
[405895975,1771408237991,-832.0,7.031e-05,2]
[405895976,1771408238000,-14156.28,7.035e-05,2]
[405895977,1771408238010,-157.0,7.059e-05,2]
[405895978,1771408238019,-258.0,7.076e-05,2]
[405895979,1771408238029,-185.0,7.083e-05,2]
[405895980,1771408238042,-817.0,7.089e-05,2]
[405895981,1771408238051,-1293.50083504,7.092e-05,2]
[405895982,1771408238062,-224.31394405,7.149e-05,2]
[405895983,1771408238071,-384.55236264,7.149e-05,2]
[405895984,1771408238081,-310.0241994,7.149e-05,2]
[405895985,1771408238091,-353.95905738,7.149e-05,2]
[405895986,1771408238101,-277.0,7.168e-05,2]
[405895987,1771408238110,-367.0,7.183e-05,2]
[405895988,1771408238120,-775.0,7.192e-05,2]
[405895990,1771408238129,-363.0,7.197e-05,2]
[405895992,1771408238138,-823.0,7.207e-05,2]
[405895994,1771408238148,-250.0,7.231e-05,2]
[405895996,1771408238157,-250.0,7.233e-05,2]
[405895998,1771408238167,-255.0,7.233e-05,2]
[405896000,1771408238177,-1680.0,7.233e-05,2]
[405896002,1771408238187,-385.0,7.264e-05,2]
[405896003,1771408238196,-190027.6422669,7.334e-05,2]
[405896005,1771408238206,-1463.1398589,7.334e-05,2]
[405896007,1771408238215,-400.0,7.5e-05,2]
[405896009,1771408238224,-800.0,7.6e-05,2]
[405896011,1771408238235,-1200.0,7.7e-05,2]
[405896013,1771408238244,-2000.0,7.7e-05,2]
[405896014,1771408238254,-378.0,7.761e-05,2]
[405896016,1771408238263,-152.0,7.772e-05,3]
[405896018,1771408238273,-2000.0,7.8e-05,2]
[405896020,1771408238282,-2000.0,7.8e-05,2]
[405896022,1771408238291,-2000.0,7.8e-05,2]
[405896024,1771408238300,-1600.0,7.8e-05,2]
[405896026,1771408238308,-3233.0,7.8e-05,2]
[405896027,1771408238318,-37276.2882509,7.838e-05,2]
[405896029,1771408238327,-2000.0,7.9e-05,2]
[405896031,1771408238337,-37237.52246235,7.942e-05,2]
[405896033,1771408238346,-4260.74942153,7.948e-05,2]
[405896035,1771408238355,-433.0,7.956e-05,2]
[405896036,1771408238365,-2351.0,7.956e-05,2]
[405896038,1771408238375,-9467.27196271,7.961e-05,2]
[405896040,1771408238384,-201.25,7.972e-05,2]
[405896042,1771408238394,-445.0,8e-05,2]
[405896044,1771408238404,-400.0,8e-05,2]
[405896046,1771408238414,-446.13,8.01e-05,2]
[405896048,1771408238423,-861.87373672,8.023e-05,2]
[405896049,1771408238432,-156.5569589,8.033e-05,2]
[405896050,1771408238445,-10871.4382769,8.033e-05,2]
[405896051,1771408238454,-8317.4641671,8.04e-05,2]
[405896052,1771408238464,-3020.0,8.1e-05,2]
[405896053,1771408238473,-338.7408405,8.122e-05,2]
[405896054,1771408238483,-167.98424554,8.122e-05,2]
[405896055,1771408238492,-272.15132973,8.122e-05,2]
[405896056,1771408238501,-511.59691283,8.122e-05,2]
[405896057,1771408238510,-1031813.02711082,8.123e-05,2]
[405896058,1771408238538,-3009.40008958,8.123e-05,2]
[405896059,1771408238550,-449.3404125,8.123e-05,2]
[405896060,1771408238561,-550.6595875,8.123e-05,2]
[405896061,1771408238580,-735.44834031,8.123e-05,2]
[405896063,1771408238591,-3059.22637876,8.123e-05,2]
[405896157,1771408240141,-512.88534869,8.123e-05,2]
[405896158,1771408240152,-474.61292259,8.123e-05,2]
[405896165,1771408243327,-49426.85118,8.123e-05,2]
[405896183,1771408245771,-2035.0,8.123e-05,2]
[405896184,1771408245984,-837.22000013,8.123e-05,2]
[405896375,1771408363089,1105.0,6.5e-05,2]
[405896376,1771408392823,150.0,6.5e-05,3]
[405896377,1771408445898,150.0,6.5e-05,3]
[405896378,1771408508999,150.0,6.5e-05,3]
[405896379,1771408509287,152.0,6.5e-05,3]
[405896380,1771408566369,150.0,6.5e-05,3]
[405896381,1771408627328,150.0,6.5e-05,3]
[405896382,1771408689797,150.0,6.5e-05,3]
[405896383,1771408752347,150.0,6.5e-05,3]
[405896384,1771408807283,150.0,6.5e-05,3]
[405896385,1771408807331,152.0,6.5e-05,3]
[405896386,1771408866953,150.0,6.5e-05,3]
[405896387,1771408880383,4352.72,6.561e-05,2]
[405896388,1771409109520,152.0,6.5e-05,3]
[405896390,1771409406761,152.0,6.5e-05,3]
[405896391,1771409431938,-1105.0,6.635e-05,2]
[405896392,1771409431948,-150.0,6.827e-05,2]
[405896393,1771409431957,-1200.0,6.827e-05,2]
[405896394,1771409431966,-2545.00815921,6.828e-05,2]
[405896396,1771409438138,-1276.78651,6.828e-05,2]
[405896397,1771409438190,-63204.84533079,6.828e-05,2]
[405896398,1771409438200,-500.0,6.874e-05,2]
[405896399,1771409438209,-1105.0,6.985e-05,2]
[405896400,1771409438219,-500.0,7.192e-05,2]
[405896401,1771409438228,-1105.0,7.352e-05,2]
[405896402,1771409438238,-892.1,7.411e-05,2]
[405896403,1771409438248,-400.0,7.5e-05,2]
[405896404,1771409438257,-166.66,7.5e-05,2]
[405896405,1771409438267,-255.0,7.51e-05,2]
[405896406,1771409438277,-1680.0,7.51e-05,2]
[405896407,1771409438286,-150.99,7.584e-05,2]
[405896408,1771409438296,-9999.99,7.584e-05,2]
[405896409,1771409438305,-209.40437684,7.584e-05,2]
[405896410,1771409438315,-174.61919141,7.584e-05,2]
[405896411,1771409438324,-693.3919763,7.584e-05,2]
[405896412,1771409438334,-277.35679052,7.584e-05,2]
[405896413,1771409438344,-578.20924308,7.584e-05,2]
[405896415,1771409438353,-151.0,7.584e-05,2]
[405896417,1771409438362,-156.587,7.584e-05,2]
[405896419,1771409438371,-162.380719,7.584e-05,2]
[405896420,1771409438381,-159.34648945,7.584e-05,2]
[405896421,1771409438391,-151.0,7.584e-05,2]
[405896422,1771409438400,-9552.16786547,7.584e-05,2]
[405896423,1771409438411,-209.40437684,7.584e-05,2]
[405896424,1771409438420,-800.0,7.6e-05,2]
[405896425,1771409438430,-152.0,7.607e-05,3]
[405896426,1771409438439,-719.04747942,7.639e-05,2]
[405896427,1771409438449,-151.0,7.639e-05,2]
[405896428,1771409438459,-646.67499838,7.639e-05,2]
[405896429,1771409438469,-151.0,7.691e-05,2]
[405896430,1771409438479,-272.15132973,7.693e-05,2]
[405896431,1771409438488,-338.7408405,7.693e-05,2]
[405896432,1771409438499,-167.98424554,7.693e-05,2]
[405896433,1771409438508,-511.59691283,7.693e-05,2]
[405896434,1771409438517,-500.0,7.693e-05,2]
[405896435,1771409438527,-500.0,7.693e-05,2]
[405896436,1771409438537,-500.0,7.693e-05,2]
[405896437,1771409438546,-500.0,7.693e-05,2]
[405896438,1771409438556,-500.0,7.693e-05,2]
[405896439,1771409438568,-328.33989247,7.693e-05,2]
[405896440,1771409438580,-1068902.19647686,7.694e-05,2]
[405896441,1771409438601,-1496.85197268,7.694e-05,2]
[405896480,1771409443367,-404.97360135,7.694e-05,2]
[405896481,1771409443730,-473.06197046,7.694e-05,2]
[405896482,1771409443741,-3688.92852384,7.694e-05,2]
[405896483,1771409443752,-1897.46000004,7.694e-05,2]
[405896484,1771409443763,-2684.21719873,7.694e-05,2]
[405896502,1771409446446,-830.415,7.694e-05,2]
[405896522,1771409638372,3740.0,0.00018,30]
[405896523,1771409658511,150.0,0.00011233,120]
[405896524,1771410063564,496.75,5.656e-05,2]
[405896525,1771410063762,496.75,5.709e-05,2]
[405896526,1771410063979,496.75,5.761e-05,2]
[405896527,1771410064245,496.75,5.814e-05,2]
[405896528,1771410064450,496.75,5.866e-05,2]
[405896529,1771410064662,100.54,5.919e-05,2]
[405896530,1771410064686,396.21,5.919e-05,2]
[405896531,1771410064872,496.75,5.972e-05,2]
[405896532,1771410065069,496.75,6.024e-05,2]
[405896533,1771410065253,496.75,6.077e-05,2]
[405896534,1771410065506,496.75,6.129e-05,2]
[405896535,1771410065712,496.75,6.182e-05,2]
[405896536,1771410065901,496.75,6.234e-05,2]
[405896537,1771410066107,496.75,6.287e-05,2]
[405896538,1771410066312,496.75,6.339e-05,2]
[405896539,1771410066546,496.75,6.392e-05,2]
[405896540,1771410066760,496.75,6.444e-05,2]
[405896541,1771410066971,496.75,6.497e-05,2]
[405896542,1771410067170,496.75,6.55e-05,2]
[405896543,1771410095609,1505.481,6.496e-05,2]
[405896544,1771410095693,189.393,6.496e-05,2]
[405896545,1771410124766,1947.926,6.528e-05,2]
[405896546,1771410124791,10000.01,6.528e-05,2]
[405896547,1771410124818,10000.01,6.528e-05,2]
[405896548,1771410124859,10000.01,6.528e-05,2]
[405896549,1771410124884,10000.01,6.528e-05,2]
[405896550,1771410125258,10000.01,6.528e-05,2]
[405896551,1771410125283,10000.01,6.528e-05,2]
[405896552,1771410125310,10000.01,6.528e-05,2]
[405896553,1771410125332,10000.01,6.528e-05,2]
[405896554,1771410125355,10000.01,6.528e-05,2]
[405896555,1771410149670,151.0,6.525e-05,2]
[405896556,1771410152598,338.7408405,6.527e-05,2]
[405896557,1771410152640,167.98424554,6.527e-05,2]
[405896558,1771410152704,511.59691283,6.527e-05,2]
[405896559,1771410152820,272.15132973,6.527e-05,2]
[405896560,1771410155641,500.0,6.527e-05,2]
[405896561,1771410155688,500.0,6.527e-05,2]
[405896562,1771410155733,500.0,6.527e-05,2]
[405896563,1771410155765,500.0,6.527e-05,2]
[405896564,1771410155796,365.27225135,6.527e-05,2]
[405896565,1771410155834,500.0,6.527e-05,2]
[405896566,1771410155870,500.0,6.527e-05,2]
[405896567,1771410155910,500.0,6.527e-05,2]
[405896568,1771410155952,500.0,6.527e-05,2]
[405896569,1771410155989,500.0,6.527e-05,2]
[405896570,1771410156029,500.0,6.527e-05,2]
[405896571,1771410159519,-200.0,8.935e-05,12]
[405896572,1771410159542,-200.0,8.935e-05,12]
[405896573,1771410159880,-230.0,8.935e-05,12]
[405896574,1771410159939,-449.0,8.935e-05,12]
[405896575,1771410159960,-173.0,8.935e-05,12]
[405896576,1771410159981,-150.0,8.935e-05,12]
[405896577,1771410160002,-150.0,8.935e-05,12]
[405896578,1771410160026,-150.0,8.935e-05,12]
[405896579,1771410160051,-265.0,8.935e-05,12]
[405896580,1771410160074,-33.0,8.935e-05,12]
[405896581,1771410223415,10000.0,0.00018,30]
[405896582,1771410229462,939.53045993,6.428e-05,2]
[405896583,1771410239370,1053.44,0.00018,30]
[405896584,1771410240830,500.0,6.476e-05,2]
[405896585,1771410241398,300.0,6.527e-05,2]
[405896586,1771410241792,150.0,6.527e-05,2]
[405896587,1771410245718,150.0,6.428e-05,3]
[405896588,1771410265364,596.14136126,6.527e-05,2]
[405896589,1771410265549,151.0,6.525e-05,2]
[405896590,1771410272578,237.11858835,6.527e-05,2]
[405896591,1771410301386,300.0,6.527e-05,2]
[405896592,1771410301436,1200.0,6.527e-05,2]
[405896593,1771410308338,152.0,6.527e-05,3]
[405896594,1771410343269,165.53,0.00018,30]
[405896595,1771410360195,-367.0,8.935e-05,12]
[405896596,1771410360221,-400.0,8.935e-05,12]
[405896597,1771410360245,-233.0,8.935e-05,12]
[405896598,1771410390590,151.0,6.525e-05,2]
[405896599,1771410407946,-167.0,8.935e-05,12]
[405896600,1771410407968,-260.0,8.935e-05,12]
[405896601,1771410407989,-150.0,8.935e-05,12]
[405896602,1771410408011,-150.0,8.935e-05,12]
[405896603,1771410408032,-150.0,8.935e-05,12]
[405896604,1771410408052,-123.0,8.935e-05,12]
[405896605,1771410421590,173.21959046,6.527e-05,2]
[405896606,1771410421614,126.78040954,6.527e-05,2]
[405896607,1771410421650,150.0,6.527e-05,2]
[405896608,1771410481654,300.0,6.527e-05,2]
[405896609,1771410541451,300.0,6.527e-05,2]
[405896614,1771410601671,1200.0,6.527e-05,2]
[405896615,1771410602203,150.0,6.527e-05,2]
[405896616,1771410603886,207.0,6.528e-05,2]
[405896617,1771410604858,152.0,6.527e-05,3]
[405896618,1771410627855,190.50593081,6.527e-05,2]
[405896619,1771410628629,358.11783899,6.527e-05,2]
[405896628,1771410632146,-351.5299975,6.528e-05,2]
[405896629,1771410632253,-21018.0468151,6.528e-05,2]
[405896631,1771410638255,-448.30419999,6.528e-05,2]